[Event "35th Roquetas Festival 2024"]
[Site "Roquetas de Mar"]
[Date "2024.01.04"]
[Round "5.11"]
[White "Bernal Moro, Luis Javier"]
[Black "Korneev Leskova, Svyatoslav"]
[Result "1/2-1/2"]
[ECO "A06"]
[WhiteElo "2370"]
[BlackElo "2248"]
[Annotator "RC"]
[PlyCount "166"]
[EventDate "2024.01.02"]
[EventType "swiss"]
[EventCountry "ESP"]
[SourceTitle "playchess.com"]
[Source "ChessBase"]
[SourceQuality "1"]
[TimeControl "5400+30"]

1. Nf3 {[%emt 0:04:36]} d5 {[%emt 0:01:07]} 2. g3 {[%emt 0:05:13]} Nf6 {[%emt 0:01:18]} 3. Bg2 {[%emt 0:01:23]} e6 {[%emt 0:00:28]} 4. O-O {[%emt 0:03:07]} Bd6 {[%emt 0:00:51]} 5. c4 {[%emt 0:01:26]} O-O {[%emt 0:00:33]} 6. d4 {[%emt 0:01:57]} h6 {[%emt 0:00:24]} 7. Nc3 {[%emt 0:02:08]} Nc6 {[%emt 0:01:05]} 8. b3 {[%emt 0:03:15]} b6 {[%emt 0:05:33]} 9. e3 {[%emt 0:23:54]} Bb7 {[%emt 0:12:47]} 10. Bb2 {[%emt 0:00:36]} Re8 {[%emt 0:04:36]} 11. Rc1 {[%emt 0:07:29]} a6 {[%emt 0:07:18]} 12. Qe2 {[%emt 0:07:00]} Qe7 {[%emt 0:23:03]} 13. Rfd1 {[%emt 0:04:27]} Ba3 {[%emt 0:04:00]} 14. Bxa3 {[%emt 0:10:10]} Qxa3 {[%emt 0:00:07]} 15. Ne5 {[%emt 0:01:30]} Qd6 {[%emt 0:03:22]} 16. Nd3 {[%emt 0:08:13]} Qf8 {[%emt 0:19:40]} 17. cxd5 {[%emt 0:04:14]} exd5 {[%emt 0:00:13]} 18. Qb2 {[%emt 0:00:21]} Qd6 {[%emt 0:01:33]} 19. b4 {[%emt 0:00:19]} Nd8 {[%emt 0:01:18]} 20. Rc2 {[%emt 0:05:37]} Ne6 {[%emt 0:01:12]} 21. Rdc1 {[%emt 0:00:50]} Re7 {[%emt 0:02:27]} 22. a4 {[%emt 0:00:17]} Rae8 {[%emt 0:02:09]} 23. b5 {[%emt 0:00:09]} a5 {[%emt 0:00:21]} 24. Ne5 {[%emt 0:00:15]} Rd8 {[%emt 0:02:01]} 25. Qb3 {[%emt 0:00:39]} Ne8 {[%emt 0:03:48]} 26. Nc6 {[%emt 0:00:16]} Bxc6 {[%emt 0:00:16]} 27. bxc6 {[%emt 0:00:04]} Nf6 {[%emt 0:01:15]} 28. Nb5 {[%emt 0:00:15]} Qb4 {[%emt 0:00:03]} 29. Qxb4 {[%emt 0:00:44]} axb4 {[%emt 0:00:04]} 30. Rb1 {[%emt 0:00:49]} g5 {[%emt 0:01:23]} 31. Rxb4 {[%emt 0:00:59]} Ree8 {[%emt 0:00:38]} 32. h3 {[%emt 0:01:51]} h5 {[%emt 0:00:08]} 33. Bf1 {[%emt 0:01:30]} g4 {[%emt 0:00:14]} 34. h4 {[%emt 0:00:19]} Ne4 {[%emt 0:01:05]} 35. Bd3 {[%emt 0:00:14]} Nd6 {[%emt 0:00:30]} 36. Nc3 {[%emt 0:00:15]} Nc8 {[%emt 0:00:41]} 37. Rb5 {[%emt 0:00:44]} Ne7 {[%emt 0:00:10]} 38. a5 {[%emt 0:00:22]} bxa5 {[%emt 0:00:03]} 39. Rxa5 {[%emt 0:00:04]} Nxc6 {[%emt 0:00:27]} 40. Rxd5 {[%emt 0:00:39]} Nb4 {[%emt 0:00:06]} 41. Rxd8 {[%emt 0:00:04]} Rxd8 {[%emt 0:00:09]} 42. Rd2 {[%emt 0:00:04]} Kg7 {[%emt 0:01:14]} 43. Bc4 {[%emt 0:01:06]} c5 {[%emt 0:01:47]} 44. d5 {[%emt 0:00:58]} Nf8 {[%emt 0:00:06]} 45. Ne4 {[%emt 0:00:41]} Nd7 {[%emt 0:00:08]} 46. Kg2 {[%emt 0:01:25]} Ne5 {[%emt 0:00:01]} 47. Be2 {[%emt 0:00:46]} Nxd5 {[%emt 0:01:40]} 48. Rc2 {[%emt 0:00:06]} c4 {[%emt 0:00:23]} 49. Bxc4 {[%emt 0:00:19]} Rc8 {[%emt 0:00:36]} 50. Bb3 {[%emt 0:00:10]} Rxc2 {[%emt 0:00:10]} 51. Bxc2 {[%emt 0:00:05]} Nf6 {[%emt 0:00:56]} 52. Nd6 {[%emt 0:00:21]} Nf3 {[%emt 0:00:15]} 53. Kf1 {[%emt 0:00:24]} Nd7 {[%emt 0:00:38]} 54. Nf5+ {[%emt 0:01:56]} Kf6 {[%emt 0:00:07]} 55. Ke2 {[%emt 0:00:30]} Ng1+ {[%emt 0:00:35]} 56. Kd1 {[%emt 0:00:18]} Nc5 {[%emt 0:00:47]} 57. Nd6 {[%emt 0:00:12]} Kg7 {[%emt 0:00:38]} 58. Ne8+ {[%emt 0:00:21]} Kh6 {[%emt 0:00:11]} 59. Nf6 {[%emt 0:00:06]} Nf3 {[%emt 0:00:30]} 60. Ke2 {[%emt 0:00:30]} Ng1+ {[%emt 0:00:25]} 61. Kd2 {[%emt 0:00:32]} Nf3+ {[%emt 0:00:26]} 62. Kd1 {[%emt 0:01:03]} Ne5 {[%emt 0:00:55]} 63. Nd5 {[%emt 0:00:23]} Ncd7 {[%emt 0:00:31]} 64. Nf4 {[%emt 0:00:38]} Nf6 {[%emt 0:00:24]} 65. Bf5 {[%emt 0:00:36]} Kg7 {[%emt 0:00:17]} 66. Ke2 {[%emt 0:00:25]} Kf8 {[%emt 0:00:22]} 67. Bc8 {[%emt 0:00:57]} Ke7 {[%emt 0:00:12]} 68. Bb7 {[%emt 0:00:05]} Ng6 {[%emt 0:01:19]} 69. Nxg6+ {[%emt 0:00:51]} fxg6 70. f4 {[%emt 0:00:34]} gxf3+ {[%emt 0:00:04]} 71. Kxf3 {[%emt 0:00:04]} Nd7 {[%emt 0:00:19]} 72. Kf4 {[%emt 0:01:05]} Kf6 {[%emt 0:00:04]} 73. Bd5 {[%emt 0:00:28]} Ne5 {[%emt 0:00:17]} 74. Be4 {[%emt 0:00:09]} Nc4 {[%emt 0:01:33]} 75. Bd3 {[%emt 0:00:14]} Ne5 {[%emt 0:00:07]} 76. Bb5 {[%emt 0:00:13]} Nf7 {[%emt 0:00:28]} 77. Be2 {[%emt 0:00:39]} Nd6 {[%emt 0:00:18]} 78. Bd3 {[%emt 0:00:17]} Nf7 {[%emt 0:00:21]} 79. Ke4 {[%emt 0:00:33]} Ne5 {[%emt 0:01:01]} 80. Bb5 {[%emt 0:00:16]} Ng4 {[%emt 0:00:33]} 81. Be2 {[%emt 0:01:03]} Ne5 {[%emt 0:00:05]} 82. Kf4 {[%emt 0:00:18]} Nf7 {[%emt 0:00:14]} 83. g4 {[%emt 0:00:21]} hxg4 {[%emt 0:00:09]} 1/2-1/2

[Event "35th Roquetas Festival 2024"]
[Site "Roquetas de Mar"]
[Date "2024.01.04"]
[Round "5.12"]
[White "Vingris, Mikelis"]
[Black "Fiorito, Francisco"]
[Result "0-1"]
[ECO "C10"]
[WhiteElo "2248"]
[BlackElo "2370"]
[Annotator "RC"]
[PlyCount "122"]
[EventDate "2024.01.02"]
[EventType "swiss"]
[EventCountry "ESP"]
[SourceTitle "playchess.com"]
[Source "ChessBase"]
[SourceQuality "1"]
[TimeControl "5400+30"]

1. e4 {[%emt 0:00:08]} e6 {[%emt 0:00:28]} 2. d4 {[%emt 0:00:05]} d5 {[%emt 0:00:04]} 3. Nc3 {[%emt 0:00:04]} dxe4 {[%emt 0:00:04]} 4. Nxe4 {[%emt 0:00:06]} Nd7 {[%emt 0:00:03]} 5. Nf3 {[%emt 0:03:22]} Ngf6 {[%emt 0:00:09]} 6. Bd3 {[%emt 0:02:10]} Nxe4 {[%emt 0:01:20]} 7. Bxe4 {[%emt 0:00:06]} Nf6 {[%emt 0:00:03]} 8. Bd3 {[%emt 0:01:40]} c5 {[%emt 0:00:06]} 9. dxc5 {[%emt 0:06:55]} Bxc5 {[%emt 0:00:06]} 10. O-O {[%emt 0:00:50]} O-O {[%emt 0:00:04]} 11. Qe2 {[%emt 0:08:38]} b6 {[%emt 0:04:07]} 12. Bg5 {[%emt 0:03:02]} Bb7 {[%emt 0:01:59]} 13. Rad1 {[%emt 0:02:58]} Qc7 {[%emt 0:01:59]} 14. Ne5 {[%emt 0:15:26]} Rfd8 {[%emt 0:10:26]} 15. Ng4 {[%emt 0:15:34]} Qc6 {[%emt 0:04:42]} 16. Ne3 {[%emt 0:11:25]} Kh8 {[%emt 0:22:12]} 17. f3 {[%emt 0:10:26]} Qc7 {[%emt 0:09:32]} 18. Kh1 {[%emt 0:01:30]} Qe5 {[%emt 0:01:23]} 19. Bxf6 {[%emt 0:01:16]} Qxf6 {[%emt 0:01:04]} 20. c3 {[%emt 0:02:43]} Qf4 {[%emt 0:03:10]} 21. Nc4 {[%emt 0:01:40]} Rac8 {[%emt 0:00:55]} 22. Qe5 {[%emt 0:01:22]} Qh4 {[%emt 0:00:41]} 23. Be4 {[%emt 0:03:10]} Ba6 {[%emt 0:02:35]} 24. b3 {[%emt 0:01:21]} Qf2 {[%emt 0:07:33]} 25. Qg3 {[%emt 0:03:25]} Rxd1 {[%emt 0:09:19]} 26. Qxf2 {[%emt 0:00:48]} Bxf2 {[%emt 0:00:53]} 27. Rxd1 {[%emt 0:00:05]} Bxc4 {[%emt 0:01:18]} 28. bxc4 {[%emt 0:00:03]} g6 {[%emt 0:01:35]} 29. Bd3 {[%emt 0:01:00]} Bh4 {[%emt 0:00:09]} 30. Be2 {[%emt 0:01:17]} Rc7 {[%emt 0:00:10]} 31. Kg1 {[%emt 0:00:43]} Bf6 {[%emt 0:00:07]} 32. Rc1 {[%emt 0:00:09]} Rd7 {[%emt 0:00:06]} 33. Rc2 {[%emt 0:00:04]} Bg5 {[%emt 0:00:09]} 34. Kf2 {[%emt 0:01:47]} f5 {[%emt 0:00:01]} 35. Ke1 {[%emt 0:01:35]} e5 {[%emt 0:00:05]} 36. Bf1 {[%emt 0:00:54]} e4 {[%emt 0:00:10]} 37. fxe4 {[%emt 0:00:36]} fxe4 {[%emt 0:00:00]} 38. g3 {[%emt 0:00:25]} h5 {[%emt 0:00:01]} 39. h3 {[%emt 0:00:40]} Kg7 {[%emt 0:00:02]} 40. Re2 {[%emt 0:00:23]} e3 {[%emt 0:00:04]} 41. Bg2 {[%emt 0:00:12]} h4 {[%emt 0:00:21]} 42. g4 {[%emt 0:00:39]} Kf6 {[%emt 0:00:17]} 43. Bd5 {[%emt 0:00:19]} Ke5 {[%emt 0:00:05]} 44. Kf1 {[%emt 0:00:06]} Rd8 {[%emt 0:00:21]} 45. Kg2 {[%emt 0:00:08]} Bf4 {[%emt 0:00:18]} 46. a4 {[%emt 0:00:30]} Rf8 {[%emt 0:00:53]} 47. Rb2 {[%emt 0:00:25]} Bg3 {[%emt 0:00:13]} 48. Bf3 {[%emt 0:01:13]} Be1 {[%emt 0:02:18]} 49. Rc2 {[%emt 0:00:38]} Rd8 {[%emt 0:00:17]} 50. Bd5 {[%emt 0:00:11]} Bd2 {[%emt 0:00:12]} 51. Bf3 {[%emt 0:01:00]} Kf4 {[%emt 0:00:01]} 52. Be2 {[%emt 0:00:17]} Rf8 {[%emt 0:00:50]} 53. Bd3 {[%emt 0:00:54]} Rd8 {[%emt 0:00:06]} 54. Be2 {[%emt 0:00:05]} Rd6 {[%emt 0:00:02]} 55. Rb2 {[%emt 0:00:59]} Bxc3 {[%emt 0:00:02]} 56. Rc2 {[%emt 0:00:31]} Bb4 {[%emt 0:00:11]} 57. Rb2 {[%emt 0:00:22]} Bc5 {[%emt 0:00:21]} 58. Ra2 {[%emt 0:00:35]} Ke4 {[%emt 0:00:01]} 59. Bf3+ {[%emt 0:00:30]} Kd3 {[%emt 0:00:22]} 60. Bd5 {[%emt 0:00:28]} e2 {[%emt 0:00:16]} 61. Ra1 {[%emt 0:00:34]} Bb4 {[%emt 0:00:06]} 0-1

[Event "35th Roquetas Festival 2024"]
[Site "Roquetas de Mar"]
[Date "2024.01.04"]
[Round "5.13"]
[White "Habans Aguerrea, Javier"]
[Black "Gomez Arce, Alejandro"]
[Result "1-0"]
[ECO "A13"]
[WhiteElo "2368"]
[BlackElo "2074"]
[Annotator "RC"]
[PlyCount "53"]
[EventDate "2024.01.02"]
[EventType "swiss"]
[EventCountry "ESP"]
[SourceTitle "playchess.com"]
[Source "ChessBase"]
[SourceQuality "1"]
[TimeControl "5400+30"]

1. c4 {[%emt 0:00:03]} e6 {[%emt 0:03:37]} 2. g3 {[%emt 0:00:08]} d5 {[%emt 0:00:05]} 3. Bg2 {[%emt 0:00:05]} a6 {[%emt 0:00:05]} 4. d4 {[%emt 0:01:02]} dxc4 {[%emt 0:00:10]} 5. Nd2 {[%emt 0:00:07]} c5 {[%emt 0:02:51]} 6. Nxc4 {[%emt 0:10:18]} cxd4 {[%emt 0:00:23]} 7. Nf3 {[%emt 0:00:24]} Nc6 {[%emt 0:00:30]} 8. O-O {[%emt 0:00:09]} Bc5 {[%emt 0:03:45]} 9. a3 {[%emt 0:02:36]} Nge7 {[%emt 0:02:31]} 10. b4 {[%emt 0:02:37]} Ba7 {[%emt 0:01:27]} 11. e3 {[%emt 0:22:53]} O-O {[%emt 0:35:39]} 12. exd4 {[%emt 0:00:59]} Nxd4 {[%emt 0:09:47]} 13. Bb2 {[%emt 0:10:02]} Nxf3+ {[%emt 0:01:57]} 14. Qxf3 {[%emt 0:02:11]} Nd5 15. Qg4 {[%emt 0:03:44]} f6 {[%emt 0:05:06]} 16. Rfe1 {[%emt 0:03:58]} Bd7 {[%emt 0:06:57]} 17. Qh5 {[%emt 0:04:07]} Rc8 {[%emt 0:10:53]} 18. Rac1 {[%emt 0:14:50]} Bb5 {[%emt 0:04:40]} 19. Rxe6 {[%emt 0:03:41]} Rxc4 {[%emt 0:06:44]} 20. Bxd5 {[%emt 0:01:42]} Rxc1+ {[%emt 0:00:14]} 21. Bxc1 {[%emt 0:01:29]} Kh8 {[%emt 0:00:00]} 22. Bf4 {[%emt 0:05:54]} f5 {[%emt 0:02:23]} 23. Rh6 {[%emt 0:02:17]} gxh6 {[%emt 0:01:37]} 24. Be5+ {[%emt 0:00:02]} Rf6 {[%emt 0:00:05]} 25. Qf7 {[%emt 0:00:40]} Bxf2+ {[%emt 0:01:00]} 26. Kxf2 {[%emt 0:00:29]} Qb6+ {[%emt 0:00:13]} 27. Kg2 {[%emt 0:00:07]} 1-0

[Event "35th Roquetas Festival 2024"]
[Site "Roquetas de Mar"]
[Date "2024.01.04"]
[Round "5.14"]
[White "Romero Calduch, Sergio"]
[Black "Garcia Fernandez, Victor"]
[Result "0-1"]
[ECO "D37"]
[WhiteElo "2208"]
[BlackElo "2366"]
[Annotator "RC"]
[PlyCount "103"]
[EventDate "2024.01.02"]
[EventType "swiss"]
[EventCountry "ESP"]
[SourceTitle "playchess.com"]
[Source "ChessBase"]
[SourceQuality "1"]
[TimeControl "5400+30"]

1. d4 {[%emt 0:03:31]} Nf6 {[%emt 0:00:09]} 2. c4 {[%emt 0:00:10]} e6 {[%emt 0:00:07]} 3. Nf3 {[%emt 0:08:08]} d5 {[%emt 0:00:12]} 4. Nc3 {[%emt 0:00:25]} dxc4 {[%emt 0:00:58]} 5. e3 {[%emt 0:00:39]} a6 {[%emt 0:00:46]} 6. a4 {[%emt 0:02:19]} c5 {[%emt 0:02:02]} 7. Bxc4 {[%emt 0:00:25]} b6 {[%emt 0:03:49]} 8. d5 {[%emt 0:07:46]} exd5 {[%emt 0:01:55]} 9. Nxd5 {[%emt 0:00:53]} Be6 {[%emt 0:00:45]} 10. e4 {[%emt 0:06:59]} Bxd5 {[%emt 0:07:45]} 11. exd5 {[%emt 0:00:16]} Bd6 {[%emt 0:00:04]} 12. O-O {[%emt 0:02:42]} O-O {[%emt 0:00:05]} 13. Re1 {[%emt 0:02:15]} Nbd7 {[%emt 0:02:10]} 14. h3 {[%emt 0:06:52]} Qc7 {[%emt 0:01:37]} 15. Ra3 {[%emt 0:08:28]} Qb7 {[%emt 0:14:36]} 16. Rb3 {[%emt 0:05:16]} Rfe8 {[%emt 0:00:08]} 17. Rxe8+ {[%emt 0:02:57]} Nxe8 {[%emt 0:01:10]} 18. Qe2 {[%emt 0:06:23]} Nc7 {[%emt 0:02:39]} 19. Ng5 {[%emt 0:07:25]} Nf6 {[%emt 0:02:21]} 20. Rf3 {[%emt 0:05:36]} Re8 {[%emt 0:01:02]} 21. Re3 {[%emt 0:10:06]} Rxe3 {[%emt 0:01:14]} 22. fxe3 {[%emt 0:01:19]} b5 {[%emt 0:08:12]} 23. Ba2 {[%emt 0:00:51]} h6 {[%emt 0:02:04]} 24. e4 {[%emt 0:00:30]} hxg5 {[%emt 0:12:00]} 25. e5 {[%emt 0:00:20]} c4 {[%emt 0:00:06]} 26. exf6 {[%emt 0:04:20]} gxf6 {[%emt 0:01:23]} 27. axb5 {[%emt 0:02:11]} axb5 {[%emt 0:00:07]} 28. b3 {[%emt 0:01:33]} c3 {[%emt 0:01:08]} 29. b4 {[%emt 0:00:15]} Nxd5 {[%emt 0:00:51]} 30. Kh1 {[%emt 0:00:57]} Qe7 {[%emt 0:01:16]} 31. Qxe7 {[%emt 0:02:22]} Nxe7 {[%emt 0:00:01]} 32. Bb1 {[%emt 0:00:09]} Nd5 {[%emt 0:00:36]} 33. Bd3 {[%emt 0:00:42]} Nxb4 {[%emt 0:00:16]} 34. Bxb5 {[%emt 0:00:09]} Bf4 {[%emt 0:00:11]} 35. Ba3 {[%emt 0:01:46]} c2 {[%emt 0:00:05]} 36. g4 {[%emt 0:00:43]} c1=Q+ 37. Bxc1 {[%emt 0:00:05]} Bxc1 {[%emt 0:00:20]} 38. Kg2 {[%emt 0:00:29]} Nd5 {[%emt 0:00:05]} 39. Bc6 {[%emt 0:01:04]} Nf4+ {[%emt 0:00:00]} 40. Kg3 {[%emt 0:00:04]} Bd2 {[%emt 0:00:12]} 41. Ba4 {[%emt 0:00:30]} Be1+ {[%emt 0:00:06]} 42. Kh2 {[%emt 0:00:07]} Kf8 {[%emt 0:00:13]} 43. Bb3 {[%emt 0:00:07]} Ke7 {[%emt 0:00:06]} 44. Ba2 {[%emt 0:00:14]} Ne6 {[%emt 0:00:26]} 45. Kg2 {[%emt 0:00:09]} Kd6 {[%emt 0:00:07]} 46. Kf3 {[%emt 0:00:08]} Ke5 {[%emt 0:00:06]} 47. Bc4 {[%emt 0:00:19]} Nf4 {[%emt 0:00:23]} 48. Bxf7 {[%emt 0:00:19]} Nxh3 {[%emt 0:00:04]} 49. Bb3 {[%emt 0:00:44]} Nf4 {[%emt 0:00:14]} 50. Ba4 {[%emt 0:00:42]} Ng6 {[%emt 0:00:08]} 51. Kg2 {[%emt 0:01:04]} Nh4+ {[%emt 0:00:07]} 52. Kh3 {[%emt 0:00:09]} 0-1

[Event "35th Roquetas Festival 2024"]
[Site "Roquetas de Mar"]
[Date "2024.01.04"]
[Round "5.15"]
[White "Shamatava, Nikolozi"]
[Black "Macak, Stefan"]
[Result "1/2-1/2"]
[ECO "D30"]
[WhiteElo "2088"]
[BlackElo "2354"]
[Annotator "RC"]
[PlyCount "73"]
[EventDate "2024.01.02"]
[EventType "swiss"]
[EventCountry "ESP"]
[SourceTitle "playchess.com"]
[Source "ChessBase"]
[SourceQuality "1"]
[TimeControl "5400+30"]

1. d4 {[%emt 0:00:02]} d5 {[%emt 0:01:45]} 2. c4 {[%emt 0:00:04]} e6 {[%emt 0:00:04]} 3. Nf3 {[%emt 0:00:05]} a6 {[%emt 0:00:03]} 4. cxd5 {[%emt 0:00:15]} exd5 {[%emt 0:00:06]} 5. Nc3 {[%emt 0:00:04]} Nf6 {[%emt 0:00:55]} 6. Bg5 {[%emt 0:00:07]} Be6 {[%emt 0:07:08]} 7. e3 {[%emt 0:02:50]} c6 {[%emt 0:05:27]} 8. Bd3 {[%emt 0:01:07]} Bd6 {[%emt 0:04:19]} 9. Qb3 {[%emt 0:13:26]} b5 {[%emt 0:11:46]} 10. Qc2 {[%emt 0:04:17]} h6 {[%emt 0:06:07]} 11. Bh4 {[%emt 0:01:03]} O-O {[%emt 0:03:27]} 12. O-O {[%emt 0:01:13]} Nbd7 {[%emt 0:08:02]} 13. e4 {[%emt 0:11:54]} dxe4 {[%emt 0:01:02]} 14. Nxe4 {[%emt 0:00:15]} Be7 {[%emt 0:00:12]} 15. Ne5 {[%emt 0:06:51]} Nxe5 16. dxe5 Nxe4 17. Bxe7 Qxe7 18. Bxe4 Rac8 19. Rfe1 Qd8 {[%emt 0:15:17]} 20. Rf1 {[%emt 0:03:16]} Qe7 {[%emt 0:00:30]} 21. f4 {[%emt 0:04:01]} f6 {[%emt 0:05:10]} 22. b3 {[%emt 0:09:42]} fxe5 {[%emt 0:02:22]} 23. fxe5 {[%emt 0:00:06]} Rxf1+ {[%emt 0:00:24]} 24. Rxf1 {[%emt 0:00:10]} c5 {[%emt 0:02:29]} 25. Qc3 {[%emt 0:03:48]} b4 {[%emt 0:14:01]} 26. Qg3 {[%emt 0:16:32]} Qg5 {[%emt 0:00:09]} 27. Qe1 {[%emt 0:01:16]} Re8 {[%emt 0:07:22]} 28. Rf3 {[%emt 0:03:10]} Kh8 {[%emt 0:01:36]} 29. Re3 {[%emt 0:06:20]} c4 {[%emt 0:02:21]} 30. bxc4 {[%emt 0:00:06]} Bxc4 {[%emt 0:00:11]} 31. Bb1 {[%emt 0:04:11]} Rf8 {[%emt 0:01:12]} 32. Bd3 {[%emt 0:00:09]} Bxd3 {[%emt 0:02:00]} 33. Rxd3 {[%emt 0:00:09]} a5 {[%emt 0:00:55]} 34. h3 {[%emt 0:00:18]} Re8 {[%emt 0:00:34]} 35. Rd5 {[%emt 0:01:34]} Rc8 {[%emt 0:00:27]} 36. Rd2 {[%emt 0:03:22]} Re8 37. Qc1 1/2-1/2

[Event "35th Roquetas Festival 2024"]
[Site "Roquetas de Mar"]
[Date "2024.01.04"]
[Round "5.16"]
[White "Cuenca Jimenez, Jose Fernando"]
[Black "Bravo De La Vega, Alvaro"]
[Result "1/2-1/2"]
[ECO "A45"]
[WhiteElo "2514"]
[BlackElo "2121"]
[Annotator "TA"]
[PlyCount "79"]
[EventDate "2024.01.02"]
[EventType "swiss"]
[EventCountry "ESP"]
[SourceTitle "playchess.com"]
[Source "ChessBase"]
[SourceQuality "1"]
[TimeControl "5400+30"]

{[%evp 9,79,-2,7,-3,0,-2,0,-7,22,-9,-9,-5,0,-17,-15,-21,-15,-19,-18,-28,-30,-45,-24,-49,-39,-45,-39,-36,-39,-42,-43,-42,-45,-43,-35,-85,-60,-81,-81,-88,-88,-116,-117,-108,-119,-138,-143,-144,-147,-157,-164,-188,-47,-43,0,-93,-94,-170,-147,-199,-62,-105,-83,-114,-126,-165,-74,-125,-109,-244,-234,-227]} 1. d4 {[%emt 0:00:59]} Nf6 {[%emt 0:03:32]} 2. Bf4 {[%emt 0:00:14]} g6 {[%emt 0:00:09]} 3. Nc3 {[%emt 0:00:09]} d5 {[%emt 0:00:17]} 4. e3 {[%emt 0:00:11]} Bg7 {[%emt 0:00:31]} 5. h4 {[%emt 0:00:04]} h5 {[%emt 0:03:06]} 6. Nf3 {[%emt 0:00:08] A45: Trompowsky Attack.} (6. Nb5 $5 Na6 $8 7. Nc3 $11) 6... O-O {[%emt 0:05:13][%cal Oc7c5]} 7. Nb5 {[%emt 0:01:00]} Na6 {[%emt 0:00:37]} 8. Be2 {[%emt 0:00:12] The position is equal.} Bg4 {[%emt 0:07:18] [#]} 9. O-O $146 {[%emt 0:01:21]} ({Predecessor:} 9. Ne5 Bxe2 10. Qxe2 c6 11. Nc3 c5 12. O-O-O Rc8 13. g4 cxd4 14. exd4 Rxc3 15. bxc3 {1-0 Bortnyk,O (2604)-Gallana,M (2274) Titled Tuesday intern op 26th Jul Late blitz 2022 (5)}) 9... c6 {[%emt 0:02:45] And now ...Bxf3 would win.} 10. Nc3 {[%emt 0:00:24]} Nb8 {[%emt 0:02:15]} 11. Ne5 {[%emt 0:05:01]} Bxe2 {[%emt 0:00:15]} 12. Qxe2 {[%emt 0:00:10]} Nbd7 {[%emt 0:03:40]} 13. Rad1 {[%emt 0:02:28]} e6 {[%emt 0:07:18]} 14. Nf3 {[%emt 0:04:29]} Qb6 {[%emt 0:06:22]} 15. Rb1 {[%emt 0:06:19]} Ng4 {[%emt 0:04:41]} 16. Bg3 {[%emt 0:01:44]} c5 {[%emt 0:06:23][%cal Rc5d4]} 17. Qd1 {[%emt 0:03:08]} Nh6 {[%emt 0:05:16][%cal Bg4h6,Bh6f5,Bf5d6,Bd6e4][%mdl 32]} 18. Ne2 {[%emt 0:05:33]} Nf5 {[%emt 0:00:22]} 19. Bf4 {[%emt 0:00:05]} Bf6 {[%emt 0:02:39]} 20. Bg5 {[%emt 0:05:58]} Bxg5 {[%emt 0:03:14]} 21. hxg5 {[%emt 0:00:15]} Nd6 {[%emt 0:01:06]} 22. Nf4 {[%emt 0:08:59]} (22. c3 $15) 22... Ne4 {[%emt 0:02:47]} 23. c3 {[%emt 0:01:12]} Qd8 {[%emt 0:00:47]} 24. Nh3 {[%emt 0:00:02][%cal Oc3c4]} c4 {[%emt 0:01:24]} 25. Kh1 {[%emt 0:03:21]} b5 {[%emt 0:01:13][%cal Bb7b5,Bb5a4][%mdl 32]} 26. Qc2 {[%emt 0:07:58]} Qe7 {[%emt 0:02:58]} 27. b3 {[%emt 0:14:47]} cxb3 {[%emt 0:01:48]} 28. Rxb3 {[%emt 0:00:27]} a6 {[%emt 0:00:33]} 29. a4 {[%emt 0:02:58]} bxa4 {[%emt 0:03:56]} 30. Rb7 {[%emt 0:00:26]} Rab8 {[%emt 0:00:41]} ({Black should try} 30... Nd6 $19 31. Rb4 a5 32. Rxa4 Nb6) 31. Ra7 $15 {[%emt 0:03:08]} Ra8 {[%emt 0:01:04]} 32. Rxa8 {[%emt 0:02:17]} (32. Rb7 $11) 32... Rxa8 $17 {[%emt 0:00:06]} 33. Qxa4 {[%emt 0:01:57]} (33. Rb1 $17 {might work better.}) 33... Qd6 {[%emt 0:01:08]} (33... Nxc3 34. Qc6 $18) 34. Qb4 {[%emt 0:05:05]} (34. Ra1 $17 {was worth a try.}) 34... Rc8 {[%emt 0:05:46]} (34... a5 $19 35. Qxd6 Nxd6) 35. Ra1 {[%emt 0:01:21]} Rc6 $36 {[%emt 0:01:31][%mdl 2048] Black has strong initiative.} ({Much weaker is} 35... Rxc3 $6 36. Qxd6 Nxd6 37. Rxa6 $11) 36. Ra3 {[%emt 0:06:05]} Qc7 {[%emt 0:03:37]} 37. Qe7 {[%emt 0:01:52]} Qd6 {[%emt 0:01:40]} (37... Rxc3 $2 38. Rxc3 Qxc3 39. Qxd7 $18) ({And not} 37... Nxc3 38. Rxa6 Rxa6 39. Ne5 Ra1+ 40. Ng1 $11) (37... Rb6 $19 {is more deadly. aiming for ...Rb1+.} 38. Ra1 Qxc3 39. Qd8+ Kg7) 38. Qd8+ {[%emt 0:02:24] [#]} (38. Qxd6 $142 Nxd6 39. Ra1) 38... Kg7 $1 {[%emt 0:00:07]} 39. Rb3 {[%emt 0:01:54] [#]} (39. Ra1 $17) 39... Rb6 $1 $19 {[%emt 0:01:43]} ({Don't play} 39... Rxc3 40. Rxc3 Nxc3 41. Ne5 $18) 40. Rxb6 {[%emt 0:03:01] Weighted Error Value: White=0.29 (precise) /Black=0.20 (precise)} 1/2-1/2

[Event "35th Roquetas Festival 2024"]
[Site "Roquetas de Mar"]
[Date "2024.01.04"]
[Round "5.17"]
[White "Rodriguez Garcia, Manuel Francisco"]
[Black "Camacho Collados, Jose"]
[Result "0-1"]
[ECO "A13"]
[WhiteElo "2130"]
[BlackElo "2381"]
[Annotator "RC"]
[PlyCount "64"]
[EventDate "2024.01.02"]
[EventType "swiss"]
[EventCountry "ESP"]
[SourceTitle "playchess.com"]
[Source "ChessBase"]
[SourceQuality "1"]
[TimeControl "5400+30"]

1. c4 {[%emt 0:01:31]} e6 {[%emt 0:00:05]} 2. Nf3 {[%emt 0:00:03]} d5 {[%emt 0:00:06]} 3. e3 {[%emt 0:00:03]} Nf6 {[%emt 0:00:09]} 4. b3 {[%emt 0:00:06]} Bd6 {[%emt 0:01:18]} 5. Bb2 {[%emt 0:00:05]} O-O {[%emt 0:03:02]} 6. Nc3 {[%emt 0:03:13]} Nbd7 {[%emt 0:01:22]} 7. Qc2 {[%emt 0:04:20]} a6 {[%emt 0:00:20]} 8. Rg1 {[%emt 0:00:11]} dxc4 {[%emt 0:01:07]} 9. bxc4 {[%emt 0:01:17]} b5 {[%emt 0:00:13]} 10. cxb5 {[%emt 0:03:09]} e5 {[%emt 0:01:02]} 11. a4 {[%emt 0:04:19]} Re8 {[%emt 0:01:15]} 12. bxa6 {[%emt 0:12:10]} e4 {[%emt 0:24:03]} 13. Nd4 {[%emt 0:06:28]} Nc5 {[%emt 0:03:33]} 14. Bb5 {[%emt 0:03:50]} Nd3+ 15. Bxd3 {[%emt 0:14:20]} exd3 {[%emt 0:03:52]} 16. Qxd3 {[%emt 0:00:02]} Be5 {[%emt 0:07:35]} 17. Ncb5 {[%emt 0:31:37]} c5 {[%emt 0:01:06]} 18. a7 {[%emt 0:04:19]} cxd4 {[%emt 0:11:17]} 19. f4 {[%emt 0:04:27]} Bxf4 {[%emt 0:04:38]} 20. Qxd4 {[%emt 0:00:00]} Bxh2 {[%emt 0:03:50]} 21. Qxd8 {[%emt 0:02:30]} Rxd8 {[%emt 0:00:33]} 22. Rh1 {[%emt 0:00:04]} Bg3+ {[%emt 0:01:01]} 23. Ke2 {[%emt 0:00:01]} Bg4+ {[%emt 0:01:25]} 24. Kf1 {[%emt 0:00:13]} Rxd2 {[%emt 0:03:40]} 25. Bd4 {[%emt 0:00:02]} Ne4 {[%emt 0:02:23]} 26. Rc1 {[%emt 0:00:29]} Ra2 {[%emt 0:02:49]} 27. Nc7 {[%emt 0:02:45]} Bf2 {[%emt 0:07:44]} 28. g3 {[%emt 0:00:06]} Nxg3+ {[%emt 0:00:42]} 29. Kg2 {[%emt 0:00:05]} Nxh1 {[%emt 0:00:32]} 30. Kxh1 {[%emt 0:00:49]} Bf3+ {[%emt 0:02:18]} 31. Kh2 {[%emt 0:00:01]} Bxe3+ {[%emt 0:03:10]} 32. Kg3 {[%emt 0:00:16]} Bxc1 {[%emt 0:00:23]} 0-1